fUST/lending_fUST_20240112
["ID","MTS","AMOUNT","RATE_DAILY","PERIOD"]
[311289384,1705027707689,-6.2616235,0.00018797,2]
[311289388,1705027791834,-155.02635448,0.00018797,2]
[311289389,1705027791862,-148.97217043,0.00018797,2]
[311289390,1705027791948,-6.20405153,0.00018797,2]
[311289392,1705027810025,-155.02325349,0.00018797,2]
[311289393,1705027810052,-150.29754293,0.00018797,2]
[311289394,1705027810090,-6.23103666,0.00018797,2]
[311289453,1705027837971,-155.02325349,0.00018797,2]
[311289454,1705027837981,-7010.33990026,0.0001883,2]
[311289479,1705027841524,-8875.56278545,0.0001883,2]
[311289480,1705027841533,-816.792,0.00018831,2]
[311289481,1705027841543,-816.793,0.00018831,2]
[311289482,1705027841552,-816.792,0.00018831,2]
[311289483,1705027841561,-816.793,0.00018831,2]
[311289484,1705027841570,-816.792,0.00018831,2]
[311289485,1705027841579,-1579.25587195,0.00019,2]
[311289486,1705027841588,-170.81326,0.00019178,2]
[311289487,1705027841597,-418.16391339,0.0001921,2]
[311289488,1705027841606,-17526.0,0.0002,2]
[311289489,1705027841615,-237.08903994,0.00021999,2]
[311289490,1705027841624,-8781.52556982,0.00022,2]
[311289491,1705027841633,-2093.76186828,0.00023,2]
[311289492,1705027841646,-614.24237866,0.00024995,2]
[311289493,1705027841655,-151.0,0.00025,2]
[311289494,1705027841664,-1055.325599,0.00025,2]
[311289495,1705027841673,-1055.325599,0.00025,2]
[311289496,1705027841682,-1777.097614,0.00025,2]
[311289497,1705027841691,-1777.097614,0.00025,2]
[311289498,1705027841700,-1777.097614,0.00025,2]
[311289499,1705027841709,-1777.097614,0.00025,2]
[311289500,1705027841718,-4712.57883465,0.00026298,2]
[311289501,1705027841727,-1777.097614,0.00026299,2]
[311289502,1705027841736,-1777.097614,0.00026299,2]
[311289503,1705027841745,-1055.325599,0.000263,2]
[311289504,1705027841754,-1055.325599,0.000263,2]
[311289505,1705027841763,-153.2911349,0.00026301,2]
[311289506,1705027841772,-153.0,0.00026301,2]
[311289507,1705027841781,-153.0,0.00026301,2]
[311289508,1705027841790,-153.0,0.00026301,2]
[311289509,1705027841799,-153.0,0.00026301,2]
[311289510,1705027841808,-306.0,0.00026301,2]
[311289511,1705027841818,-153.0,0.00026301,2]
[311289512,1705027841827,-153.0510825,0.00026301,2]
[311289513,1705027841836,-153.0,0.00026301,2]
[311289514,1705027841846,-4497.54619264,0.000265,11]
[311289515,1705027841854,-1055.325599,0.000265,2]
[311289516,1705027841863,-1055.325599,0.000265,2]
[311289517,1705027841872,-1777.097614,0.000265,2]
[311289518,1705027841883,-943.60460972,0.000265,2]
[311289560,1705027842911,-833.49300428,0.000265,2]
[311289561,1705027842921,-151.0,0.00026632,2]
[311289562,1705027842930,-822.04268269,0.00026633,2]
[311289564,1705027842939,-155.02635448,0.00026633,4]
[311289566,1705027842949,-1115.64530026,0.00026815,2]
[311289568,1705027842958,-494.71762772,0.00026816,2]
[311289570,1705027842969,-594.0,0.00026816,2]
[311289814,1705028839114,500.0,0.0003,30]
[311289817,1705028857420,500.0,0.000252,7]
[311289850,1705028998058,500.0,0.0003,30]
[311289875,1705029032015,-171.86933386,0.00018797,2]
[311289877,1705029032025,-1579.25587195,0.00021999,2]
[311289879,1705029032035,-156.91175548,0.00022,2]
[311289881,1705029032045,-300.0,0.000252,2]
[311289883,1705029032054,-219.62627677,0.00026183,2]
[311289885,1705029032064,-460.75992736,0.00027,2]
[311289887,1705029032073,-22.9763982,0.00028494,2]
[311289963,1705029038203,-132.0236018,0.00028494,2]
[311289965,1705029038212,-150.041,0.00028877,2]
[311289967,1705029038222,-231.01874559,0.0002897,2]
[311289969,1705029038233,-313.83915072,0.0002897,2]
[311289972,1705029038243,-364.19012371,0.00028971,2]
[311289974,1705029038253,-2419.94300549,0.00028972,3]
[311289976,1705029038263,-171.91562452,0.00028972,2]
[311289978,1705029038273,-5000.0,0.00028972,5]
[311289979,1705029038283,-5000.0,0.00028972,5]
[311289981,1705029038294,-809.53647268,0.00028972,3]
[311289983,1705029038306,-738.727919,0.00028972,2]
[311289985,1705029038317,-738.727919,0.00028972,2]
[311289987,1705029038327,-276.97569382,0.00029,2]
[311289990,1705029038337,-3025.65541023,0.00029,2]
[311289992,1705029038347,-155.03106625,0.00029302,2]
[311289993,1705029038356,-156.90996737,0.00029335,2]
[311289996,1705029038365,-155.03106625,0.00029392,2]
[311289997,1705029038375,-267.00080824,0.00029394,2]
[311290000,1705029038385,-200.0,0.000294,4]
[311290002,1705029038396,-155.03106625,0.00029451,2]
[311290004,1705029038405,-164.8553441,0.00029469,2]
[311290006,1705029038415,-10402.05377441,0.00029487,2]
[311290008,1705029038424,-738.727919,0.00029487,2]
[311290010,1705029038433,-738.727919,0.00029487,2]
[311290012,1705029038444,-595.95044374,0.00029488,2]
[311290014,1705029038453,-890.15534796,0.00029488,2]
[311290015,1705029038462,-201.49592212,0.00029488,2]
[311290017,1705029038473,-265.40856413,0.00029489,2]
[311290020,1705029038482,-157.52430028,0.00029492,2]
[311290022,1705029038491,-242.56077651,0.00029492,2]
[311290023,1705029038501,-25231.04932142,0.00029492,2]
[311290026,1705029038511,-1196.58612071,0.00029492,2]
[311290028,1705029038521,-777.96013878,0.00029492,2]
[311290029,1705029038531,-155.02325349,0.00029492,10]
[311290032,1705029038540,-738.727919,0.00029492,2]
[311290033,1705029038550,-738.727919,0.00029492,2]
[311290035,1705029038559,-151.0,0.00029492,2]
[311290038,1705029038569,-738.727919,0.00029493,2]
[311290039,1705029038578,-738.727919,0.00029493,2]
[311290042,1705029038587,-151.0,0.00029493,2]
[311290044,1705029038597,-151.0,0.00029493,2]
[311290046,1705029038607,-8195.69184576,0.00029493,2]
[311290048,1705029038616,-163.27,0.00029493,2]
[311290050,1705029038625,-163.27,0.00029493,2]
[311290051,1705029038634,-163.27,0.00029493,2]
[311290053,1705029038646,-163.27,0.00029493,2]
[311290056,1705029038659,-131322.63334162,0.00029494,2]
[311290058,1705029038668,-738.727919,0.00029494,2]
[311290060,1705029038677,-738.727919,0.00029494,2]
[311290062,1705029038686,-151.0,0.00029494,2]
[311290064,1705029038695,-261.79245211,0.00029499,2]
[311290066,1705029038704,-450.0,0.000295,2]
[311290067,1705029038714,-476.79426346,0.00029527,2]
[311290069,1705029038723,-874.86381536,0.00029528,2]
[311290071,1705029038732,-1433.17230406,0.00029529,2]
[311290073,1705029038742,-2071.06184818,0.00029592,2]
[311290076,1705029038752,-452.90326719,0.00029592,2]
[311290077,1705029038762,-155.32468701,0.00029592,2]
[311290079,1705029038771,-155.15805966,0.00029592,2]
[311290082,1705029038781,-166.78226774,0.00029592,2]
[311290084,1705029038790,-486.00963608,0.00029592,2]
[311290085,1705029038799,-580.71423671,0.00029592,2]
[311290087,1705029038809,-542.38477698,0.00029592,2]
[311290089,1705029038819,-155.38051604,0.00029592,2]
[311290091,1705029038829,-738.727919,0.00029592,2]
[311290093,1705029038838,-738.727919,0.00029592,2]
[311290095,1705029038847,-151.0,0.00029592,2]
[311290097,1705029038856,-594.28390762,0.00029593,2]
[311290099,1705029038865,-256.09261845,0.00029593,2]
[311290101,1705029038874,-485099.21855,0.00029593,2]
[311290103,1705029038883,-27370.8926627,0.00029594,2]
[311290106,1705029038894,-738.727919,0.00029594,2]
[311290107,1705029038905,-738.727919,0.00029594,2]
[311290109,1705029038914,-151.0,0.00029594,2]
[311290112,1705029038923,-222.995,0.00029638,2]
[311290113,1705029038933,-155.03106625,0.00029687,2]
[311290116,1705029038942,-165.12689954,0.00029795,2]
[311290118,1705029038952,-187.89930128,0.00029795,2]
[311290119,1705029038961,-765.86249329,0.00029795,2]
[311290122,1705029038971,-679.85146659,0.00029795,2]
[311290124,1705029038979,-155.18840639,0.00029795,2]
[311290126,1705029038988,-246.21822105,0.00029795,2]
[311290127,1705029038999,-64500.0,0.000298,2]
[311290129,1705029039008,-738.727919,0.000298,2]
[311290132,1705029039017,-738.727919,0.000298,2]
[311290134,1705029039027,-1011.822687,0.000298,2]
[311290136,1705029039037,-151.0,0.000298,2]
[311290138,1705029039047,-216.26322835,0.0002981,2]
[311290140,1705029039056,-533.88164583,0.0002981,2]
[311290142,1705029039065,-155.0,0.00029864,2]
[311290144,1705029039074,-1504.16733782,0.00029894,2]
[311290146,1705029039083,-738.727919,0.00029895,2]
[311290148,1705029039092,-738.727919,0.00029895,2]
[311290150,1705029039101,-1011.822687,0.00029895,2]
[311290152,1705029039110,-272.20767046,0.00029895,2]
[311290153,1705029039119,-9597.1312901,0.00029895,2]
[311290156,1705029039129,-224.03561062,0.00029895,2]
[311290158,1705029039140,-176.72062397,0.00029895,2]
[311290159,1705029039148,-199.01561998,0.00029895,2]
[311290162,1705029039158,-209.19367016,0.00029895,2]
[311290163,1705029039167,-254.58811499,0.00029895,2]
[311290166,1705029039178,-404.04180091,0.00029895,2]
[311290167,1705029039188,-155.37604359,0.00029895,2]
[311290170,1705029039197,-309.64391646,0.00029895,2]
[311290172,1705029039206,-190.39130991,0.00029895,2]
[311290173,1705029039215,-155.79217329,0.00029895,2]
[311290176,1705029039224,-639.32809523,0.00029895,2]
[311290178,1705029039233,-323.46545357,0.00029895,2]
[311290180,1705029039243,-192.46175296,0.00029895,2]
[311290181,1705029039253,-209.30951998,0.00029895,2]
[311290183,1705029039262,-324.05445336,0.00029895,2]
[311290185,1705029039272,-200.34067823,0.00029895,2]
[311290189,1705029039292,-197.46298978,0.00029895,2]
[311290191,1705029039302,-293.88299778,0.00029895,2]
[311290193,1705029039312,-157.3375932,0.00029895,2]
[311290195,1705029039321,-197.53629092,0.00029895,2]
[311290197,1705029039330,-302.13367558,0.00029895,2]
[311290199,1705029039339,-224.7108072,0.00029895,2]
[311290201,1705029039348,-200.0,0.00029895,2]
[311290203,1705029039358,-215.78325318,0.00029895,2]
[311290205,1705029039368,-738.727919,0.00029896,2]
[311290207,1705029039377,-738.72792442,0.00029896,2]
[311290209,1705029039386,-1011.822681,0.00029896,2]
[311290211,1705029039397,-3949.48898252,0.00029896,2]
[311290213,1705029039407,-3177.43449897,0.00029896,2]
[311290215,1705029039416,-1577.16403894,0.00029897,2]
[311290217,1705029039426,-48350.32061886,0.00029897,2]
[311290219,1705029039436,-276.94905766,0.00029897,2]
[311290222,1705029039446,-212.89344773,0.00029897,2]
[311290224,1705029039455,-240.08547224,0.00029897,2]
[311290226,1705029039464,-276.44491575,0.00029897,2]
[311290228,1705029039474,-254.59799299,0.00029897,2]
[311290230,1705029039483,-157.04260082,0.00029897,2]
[311290232,1705029039493,-213.16710683,0.00029897,2]
[311290234,1705029039502,-2774.92130958,0.00029897,2]
[311290237,1705029039512,-264.30982982,0.00029897,2]
[311290239,1705029039522,-1233.60593605,0.00029897,2]
[311290241,1705029039531,-1838.93813418,0.00029897,2]
[311290243,1705029039541,-291.31259319,0.00029898,2]
[311290245,1705029039550,-1586.87251384,0.00029995,2]
[311290247,1705029039560,-249.75179423,0.00029995,2]
[311290249,1705029039570,-228.25266686,0.00029995,2]
[311290251,1705029039579,-2029.47846271,0.00029996,2]
[311290253,1705029039588,-500.0,0.00029996,2]
[311290255,1705029039598,-500.0,0.00029996,2]
[311290257,1705029039608,-458.95717616,0.00029996,2]
[311290259,1705029039618,-227.61058633,0.00029996,2]
[311290261,1705029039627,-202.73758923,0.00029996,2]
[311290263,1705029039637,-500.0,0.00029996,2]
[311290265,1705029039647,-320.76435773,0.00029996,2]
[311290267,1705029039656,-500.0,0.00029996,2]
[311290269,1705029039666,-500.0,0.00029996,2]
[311290271,1705029039675,-500.0,0.00029996,2]
[311290273,1705029039684,-485.52719216,0.00029996,2]
[311290275,1705029039693,-500.0,0.00029996,2]
[311290277,1705029039703,-500.0,0.00029996,2]
[311290279,1705029039713,-500.0,0.00029996,2]
[311290281,1705029039722,-412.88676673,0.00029997,2]
[311290283,1705029039731,-959.5645338,0.00029998,2]
[311290286,1705029039741,-1239.58974316,0.00029998,2]
[311290288,1705029039751,-310.0,0.00029998,2]
[311290290,1705029039763,-520.84270389,0.00029998,2]
[311290292,1705029039772,-310.0,0.00029998,2]
[311290294,1705029039781,-1290.72817531,0.00029998,2]
[311290296,1705029039790,-853.38318073,0.00029998,2]
[311290298,1705029039800,-946.99985386,0.00029998,2]
[311290300,1705029039810,-597.46543862,0.00029999,2]
[311290302,1705029039819,-1000.18263852,0.0003,10]
[311290304,1705029039829,-18553.45565274,0.0003,2]
[311290306,1705029039838,-698.89862508,0.0003,2]
[311290308,1705029039848,-163.55638359,0.0003,5]
[311290310,1705029039857,-20752.50675844,0.0003,4]
[311290312,1705029039866,-155.50940124,0.0003,4]
[311290314,1705029039876,-244.50330111,0.0003,7]
[311290316,1705029039885,-23971.95431219,0.0003,15]
[311290319,1705029039905,-6210.98321049,0.0003,15]
[311291272,1705029047881,500.0,0.0003,30]
[311291477,1705029050317,500.0,0.0003,30]
[311292050,1705030243264,-460.75992736,0.00027923,2]
[311292051,1705030243273,-170.81326,0.00027924,2]
[311292052,1705030243283,-1673.42681264,0.00028972,3]
[311292053,1705030243325,-2325.21508217,0.00028972,3]
[311292054,1705030243335,-6240.25892245,0.00028998,2]
[311292060,1705030246350,-1846.92580321,0.00028998,2]
[311292061,1705030246362,-157.06359402,0.00029,2]
[311292062,1705030246371,-200.87,0.000293,4]
[311292063,1705030246380,-155.02325349,0.00029392,10]
[311292064,1705030246390,-3025.65541023,0.00029393,2]
[311292065,1705030246405,-41483.31208073,0.00029394,2]
[311292066,1705030246414,-205.59188348,0.00029492,2]
[311292067,1705030246423,-1147.17031871,0.00029492,2]
[311292068,1705030246433,-198.7191111,0.00029753,2]
[311292069,1705030246442,-198.7191111,0.00029753,2]
[311292070,1705030246452,-198.7191111,0.00029753,2]
[311292071,1705030246463,-198.7191111,0.00029753,2]
[311292072,1705030246473,-198.7191111,0.00029753,2]
[311292073,1705030246484,-198.7191111,0.00029753,2]
[311292074,1705030246493,-198.7191111,0.00029753,2]
[311292075,1705030246503,-198.7191111,0.00029753,2]
[311292076,1705030246512,-198.7191111,0.00029753,2]
[311292077,1705030246522,-198.7191111,0.00029753,2]
[311292078,1705030246531,-198.7191111,0.00029753,2]
[311292079,1705030246541,-198.7191111,0.00029753,2]
[311292080,1705030246550,-198.7191111,0.00029753,2]
[311292081,1705030246559,-198.7191111,0.00029753,2]
[311292082,1705030246568,-198.7191111,0.00029753,2]
[311292083,1705030246577,-198.7191111,0.00029753,2]
[311292084,1705030246586,-1505.631833,0.000299,2]
[311292085,1705030246595,-2078.17635095,0.00029998,2]
[311292086,1705030246604,-11768.90327096,0.0003,15]
[311292490,1705032632560,-266.50001777,0.00028508,2]
[311292492,1705032632570,-170.81326,0.00028509,2]
[311292494,1705032632579,-562.68672223,0.00028972,3]
[311292748,1705032641602,-44.20203935,0.00028972,3]
[311292750,1705032641614,-5000.0,0.00028972,5]
[311292752,1705032641625,-354.20981891,0.00028972,3]
[311292754,1705032641637,-152.31739519,0.00029105,2]
[311292756,1705032641648,-3025.65541023,0.00029391,2]
[311292758,1705032641659,-1140.03398364,0.00029392,2]
[311292760,1705032641671,-198.7191111,0.000294,2]
[311292761,1705032641683,-198.7191111,0.000294,2]
[311292762,1705032641698,-198.7191111,0.000294,2]
[311292763,1705032641710,-198.7191111,0.000294,2]
[311292764,1705032641724,-198.7191111,0.000295,2]
[311292765,1705032641736,-198.7191111,0.000295,2]
[311292766,1705032641749,-198.7191111,0.000295,2]
[311292767,1705032641761,-198.7191111,0.000295,2]
[311292768,1705032641771,-198.7191111,0.000295,2]
[311292769,1705032641781,-79.91279747,0.000295,2]
[311292776,1705032643688,-118.80631363,0.000295,2]
[311292777,1705032643699,-198.7191111,0.000295,2]
[311292778,1705032643710,-198.7191111,0.000295,2]
[311292779,1705032643722,-198.7191111,0.000295,2]
[311292780,1705032643735,-155.03106625,0.00029532,2]
[311292781,1705032643746,-392.18202264,0.00029536,2]
[311292782,1705032643761,-927.78218705,0.00029536,2]
[311292813,1705032646759,-198.7191111,0.000295,2]
[311292814,1705032646770,-3680.03579031,0.00029536,2]
[311292815,1705032646781,-198.7191111,0.000296,2]
[311292816,1705032646791,-198.7191111,0.000296,2]
[311292817,1705032646802,-198.7191111,0.000297,2]
[311292818,1705032646813,-198.7191111,0.000297,2]
[311292819,1705032646823,-198.7191111,0.000297,2]
[311292820,1705032646834,-198.7191111,0.000297,2]
[311292821,1705032646845,-198.7191111,0.000297,2]
[311292822,1705032646855,-198.7191111,0.000297,2]
[311292823,1705032646866,-198.7191111,0.000297,2]
[311292824,1705032646876,-506.86528392,0.0002985,2]
[311292825,1705032646886,-198.7191111,0.000299,2]
[311292826,1705032646897,-198.7191111,0.000299,2]
[311292827,1705032646907,-198.7191111,0.000299,2]
[311292828,1705032646917,-198.7191111,0.000299,2]
[311292829,1705032646928,-198.7191111,0.000299,2]
[311292830,1705032646938,-198.7631195,0.000299,2]
[311292831,1705032646949,-198.7191111,0.000299,2]
[311292832,1705032646959,-198.7191111,0.000299,2]
[311292833,1705032646969,-198.7191111,0.000299,2]
[311292834,1705032646979,-198.7191111,0.000299,2]
[311292835,1705032646990,-198.7191111,0.000299,2]
[311292836,1705032647001,-198.7191111,0.000299,2]
[311292837,1705032647011,-15038.43447317,0.0002997,3]
[311292838,1705032647025,-282.82346354,0.0002997,3]
[311292887,1705033797966,199.60000018,0.0003,30]
[311293135,1705033840908,-167.996989,0.00026341,2]
[311293136,1705033840918,-9607.98745414,0.00026942,2]
[311293137,1705033840929,-2771.40266457,0.00026942,2]
[311293138,1705033840941,-3506.512567,0.00026942,2]
[311293139,1705033840950,-4106.14529753,0.00026943,2]
[311293140,1705033840962,-1849.16851754,0.00026943,2]
[311293141,1705033840970,-2093.76186828,0.00026944,2]
[311293142,1705033840979,-177.6687926,0.00027266,2]
[311293143,1705033840988,-1165.63153213,0.00028,7]
[311293144,1705033841000,-469.45799078,0.00028,7]
[311293145,1705033841011,-7914.29452379,0.00028,7]
[311293146,1705033841022,-986.3612275,0.00028,7]
[311293155,1705033842847,-498.6920485,0.00028,7]
[311293285,1705034904628,10000.0,0.0003,30]
[311293295,1705034933385,10000.0,0.0003,30]
[311293336,1705035035779,10000.0,0.0003,30]
[311293377,1705035038206,-213.03558,0.00026598,2]
[311293378,1705035038216,-167.996989,0.00026599,2]
[311293379,1705035038225,-17327.85828143,0.00026698,2]
[311293380,1705035038234,-569.57191408,0.00026799,2]
[311293381,1705035038243,-1244.11069605,0.000268,2]
[311293382,1705035038374,-3459.16035357,0.00028,7]
[311293383,1705035038387,-16956.79734828,0.00028,7]
[311293384,1705035038397,-170.81326,0.00028107,2]
[311293385,1705035038407,-198.7191111,0.00028178,2]
[311293386,1705035038416,-198.7191111,0.00028256,2]
[311293387,1705035038425,-198.7191111,0.00028356,2]
[311293388,1705035038433,-198.7191111,0.00028356,2]
[311293389,1705035038442,-198.7191111,0.00028356,2]
[311293390,1705035038451,-198.7191111,0.00028356,2]
[311293391,1705035038460,-198.7191111,0.00028356,2]
[311293392,1705035038469,-198.7191111,0.00028356,2]
[311293393,1705035038478,-198.7191111,0.00028378,2]
[311293394,1705035038487,-175.53724535,0.00028972,2]
[311293395,1705035038497,-3025.65541023,0.00029,2]
[311293396,1705035038506,-339.18603946,0.00029023,3]
[311293397,1705035038515,-354.394456,0.00029388,2]
[311293398,1705035038524,-354.394456,0.00029388,2]
[311293399,1705035038533,-860.049284,0.00029388,2]
[311293400,1705035038543,-218.577551,0.00029388,2]
[311293401,1705035038552,-151.0,0.00029388,2]
[311293402,1705035038561,-2361.29940446,0.00029388,2]
[311293403,1705035038570,-53418.53,0.0002967,3]
[311293404,1705035038579,-50103.47345,0.00029679,2]
[311293405,1705035038588,-52076.82404984,0.0002968,3]
[311293407,1705035041017,-998.16050914,0.0002968,3]
[311293424,1705035043062,-3957.35220614,0.0002968,3]
[311293425,1705035043074,-7069.89323488,0.0002968,3]
[311293426,1705035043084,-2439.66080229,0.0002969,3]
[311293427,1705035043363,-999.04633938,0.0002969,3]
[311293517,1705036103410,4047.48268626,0.0003,30]
[311293618,1705036238448,-155.03875969,0.0002697,2]
[311293619,1705036238457,-289.5463958,0.00026971,2]
[311293620,1705036238467,-1861.2231877,0.00026989,2]
[311293621,1705036238476,-155.02480397,0.00026998,4]
[311293622,1705036238486,-170.81326,0.00027399,2]
[311293623,1705036238495,-190.3490478,0.00027775,2]
[311293624,1705036238505,-210.82612741,0.000279,2]
[311293625,1705036238514,-160.42151857,0.00028684,2]
[311293626,1705036238524,-12497.92741501,0.00028749,2]
[311293646,1705036241213,-312.36705392,0.00028749,2]
[311293647,1705036241223,-155.06823002,0.00029,2]
[311293648,1705036241232,-3025.65541023,0.00029,2]
[311293649,1705036241243,-155.03106625,0.00029005,2]
[311293650,1705036241252,-559.89671756,0.00029023,2]
[311293651,1705036241262,-168.67134234,0.00029023,2]
[311293652,1705036241272,-151.40809573,0.00029126,2]
[311293653,1705036241281,-155.03106625,0.00029209,2]
[311293654,1705036241291,-152.31739519,0.00029476,2]
[311293655,1705036241301,-156.90996738,0.00029587,2]
[311293656,1705036241311,-8422.970278,0.000296,2]
[311293657,1705036241321,-2552.63450233,0.00029728,2]
[311293658,1705036241330,-212.5168263,0.00029729,2]
[311293659,1705036241339,-155.24155456,0.00029729,2]
[311293660,1705036241349,-479.20304229,0.00029778,2]
[311293661,1705036241359,-802.65804442,0.00029778,2]
[311293662,1705036241368,-872.87113394,0.00029779,2]
[311293663,1705036241377,-820.07852185,0.00029779,2]
[311293664,1705036241386,-155.03106626,0.00029806,2]
[311293665,1705036241403,-5275.52628201,0.000299,2]
[311293666,1705036241413,-179.013844,0.00029954,2]
[311293667,1705036241422,-36174.77,0.0002997,3]
[311293668,1705036241431,-268.52159066,0.00029978,2]
[311293669,1705036241440,-817.04682,0.00029979,2]
[311293670,1705036241450,-817.04682,0.00029979,2]
[311293671,1705036241459,-1056.07006373,0.00029979,7]
[311293672,1705036241469,-3426.0257655,0.0002998,3]
[311293675,1705036243466,-963.57338502,0.0002998,3]
[311293677,1705036243525,-3572.00707235,0.0002998,3]
[311293678,1705036243537,-13773.14271986,0.0002998,3]
[311293696,1705036243979,-4758.0,0.0002998,3]
[311293698,1705036243990,-549.64907263,0.0002998,3]
[311293704,1705036244034,-2428.15351575,0.0002998,3]
[311293830,1705037432360,-791.46551838,0.00022499,2]
[311293879,1705037438598,-3.58832071,0.00022499,2]
[311293880,1705037438607,-677.18765749,0.00026882,2]
[311293881,1705037438616,-289.5463958,0.00026882,2]
[311293882,1705037438626,-4005.78937176,0.00026883,2]
[311293883,1705037438635,-614.24237866,0.00026883,2]
[311293884,1705037438645,-1195.46446057,0.00026884,2]
[311293885,1705037438654,-166.666666,0.000269,2]
[311293886,1705037438663,-1112.08388858,0.00026989,2]
[311293887,1705037438672,-190.0847083,0.00027797,2]
[311293888,1705037438681,-260.22861169,0.0002788,2]
[311293889,1705037438690,-2513.15982708,0.00028,3]
[311293890,1705037438699,-178.044373,0.00028725,2]
[311293891,1705037438708,-200.0,0.00028749,2]
[311293892,1705037438717,-3025.65541023,0.00029,2]
[311293893,1705037438727,-637.86251693,0.00029023,3]
[311293894,1705037438736,-151.40809573,0.0002953,2]
[311293895,1705037438745,-151.40809573,0.00029821,2]
[311293896,1705037438754,-177.43887753,0.00029868,4]
[311293897,1705037438845,-24133.57877779,0.000299,2]
[311293898,1705037438880,-28576.93,0.00029939,3]
[311293899,1705037438890,-23265.46574797,0.00029949,3]
[311293919,1705037444070,-2379.0,0.00029948,3]
[311293951,1705037444386,-10320.63683392,0.00029948,3]
[311293955,1705037444441,-1921.14572068,0.00029948,3]
[311293957,1705037446601,-9193.3274454,0.00029948,3]
[311293958,1705037446611,-11026.85425203,0.00029949,3]
[311293959,1705037446621,-91525.83418,0.00029958,2]
[311293960,1705037446630,-41150.79,0.00029959,3]
[311293961,1705037446641,-501.04827897,0.0002998,2]
[311293962,1705037446650,-2080.28320628,0.0002998,2]
[311293963,1705037446659,-300.0,0.0002998,2]
[311293964,1705037446668,-305.10874727,0.0002998,2]
[311293965,1705037446678,-3314.65607422,0.0002998,2]
[311293966,1705037446687,-483.70402336,0.0002998,2]
[311293967,1705037446696,-200.0,0.00029987,2]
[311293968,1705037446705,-2159.27808913,0.00029988,2]
[311293969,1705037446715,-266.19065175,0.00029988,2]
[311293970,1705037446724,-753.57612089,0.00029988,2]
[311293971,1705037446734,-230.0,0.00029995,2]
[311293972,1705037446743,-155.25569734,0.00029998,2]
[311293973,1705037446752,-155.04341216,0.00029998,2]
[311293974,1705037446761,-273.85296436,0.00029998,10]
[311293975,1705037446770,-435.00448924,0.00029998,2]
[311293976,1705037446779,-545.27659827,0.00029998,2]
[311293977,1705037446788,-155.2197997,0.00029998,2]
[311293978,1705037446797,-3716.2915794,0.00029998,2]
[311293979,1705037446806,-1048.14560533,0.00029998,7]
[311293980,1705037446815,-155.21679642,0.00029998,2]
[311293981,1705037446824,-702.89,0.00029999,2]
[311293982,1705037446833,-702.89,0.00029999,2]
[311293983,1705037446842,-702.89,0.00029999,2]
[311293984,1705037446852,-702.89,0.00029999,2]
[311293985,1705037446861,-702.89,0.00029999,2]
[311293986,1705037446870,-702.89,0.00029999,2]
[311293987,1705037446879,-702.89,0.00029999,2]
[311293988,1705037446890,-702.89,0.00029999,2]
[311293989,1705037446899,-702.89,0.00029999,2]
[311293990,1705037446909,-702.89,0.00029999,2]
[311293991,1705037446919,-13600.31942486,0.0003,15]
[311293992,1705037446928,-463.46661998,0.0003,4]
[311293993,1705037446937,-6975.26133049,0.0003,4]
[311293994,1705037446947,-815.96446693,0.0003,2]
[311293995,1705037446956,-2151.8403773,0.0003,4]
[311293996,1705037446966,-10528.61647802,0.0003,4]
[311293997,1705037446975,-686.8051383,0.0003,4]
[311293998,1705037446984,-639.80669723,0.0003,4]
[311293999,1705037446994,-2496.79860235,0.0003,2]
[311294000,1705037447002,-157.42373357,0.0003,4]
[311294001,1705037447011,-2018.07,0.0003,4]
[311294002,1705037447021,-21335.0,0.0003,2]
[311294003,1705037447030,-7529.63017109,0.0003,5]
[311294004,1705037447039,-298.65867956,0.0003,2]
[311294005,1705037447049,-53686.67197788,0.0003,2]
[311294006,1705037447065,-729.81146932,0.0003,2]
[311294127,1705038638713,-289.5463958,0.00026169,2]
[311294128,1705038638723,-219.02226915,0.0002617,2]
[311294129,1705038638732,-166.666666,0.00026177,2]